[Event "Titled Tuesday Blitz January 25 2022"]
[White "Vovk, Orest"]
[Black "Demchenko, Anton"]
[WhiteFideId "14113490"]
[BlackFideId "4160258"]
[WhiteElo "2203"]
[BlackElo "2539"]
[Result "0-1"]
[Round "11"]
[TimeControl "180+1"]
[Date "2022.01.26"]
[WhiteClock "0:00:04"]
[BlackClock "0:00:09"]

1. h4 {[%clk 0:03:00]}  d5 {[%clk 0:02:59]} 2. h5 {[%clk 0:03:01]}  c5 {[%clk 0:02:59]} 3. e4 {[%clk 0:03:00]}  dxe4 {[%clk 0:02:58]} 4. Nc3 {[%clk 0:03:01]}  Nf6 {[%clk 0:02:58]} 5. Rh4 {[%clk 0:03:00]}  Bf5 {[%clk 0:02:21]} 6. d3 {[%clk 0:02:49]}  exd3 {[%clk 0:02:14]} 7. g4 {[%clk 0:02:49]}  Be6 {[%clk 0:01:39]} 8. g5 {[%clk 0:02:41]}  Nd5 {[%clk 0:01:37]} 9. Nxd5 {[%clk 0:02:37]}  Qxd5 {[%clk 0:01:34]} 10. Bxd3 {[%clk 0:02:35]}  Nc6 {[%clk 0:01:32]} 11. Be3 {[%clk 0:02:20]}  O-O-O {[%clk 0:01:09]} 12. Qf3 {[%clk 0:01:53]}  Ne5 {[%clk 0:00:52]} 13. Qxd5 {[%clk 0:01:48]}  Bxd5 {[%clk 0:00:53]} 14. Be4 {[%clk 0:01:38]}  e6 {[%clk 0:00:50]} 15. O-O-O {[%clk 0:01:33]}  Be7 {[%clk 0:00:49]} 16. Bxd5 {[%clk 0:01:24]}  exd5 {[%clk 0:00:48]} 17. Bf4 {[%clk 0:01:14]}  h6 {[%clk 0:00:36]} 18. Bxe5 {[%clk 0:00:56]}  Bxg5+ {[%clk 0:00:36]} 19. Rf4 {[%clk 0:00:57]}  f6 {[%clk 0:00:22]} 20. Kb1 {[%clk 0:00:47]}  fxe5 {[%clk 0:00:22]} 21. Rf5 {[%clk 0:00:44]}  Bf6 {[%clk 0:00:20]} 22. Nf3 {[%clk 0:00:41]}  Rhe8 {[%clk 0:00:21]} 23. a4 {[%clk 0:00:38]}  Kc7 {[%clk 0:00:21]} 24. Nh2 {[%clk 0:00:32]}  Kd6 {[%clk 0:00:18]} 25. Ng4 {[%clk 0:00:30]}  Ke6 {[%clk 0:00:18]} 26. Rf3 {[%clk 0:00:30]}  e4 {[%clk 0:00:18]} 27. Nxf6 {[%clk 0:00:27]}  exf3 {[%clk 0:00:14]} 28. Nxe8 {[%clk 0:00:26]}  Rxe8 {[%clk 0:00:15]} 29. Rd3 {[%clk 0:00:22]}  Rf8 {[%clk 0:00:15]} 30. a5 {[%clk 0:00:19]}  Kd6 {[%clk 0:00:13]} 31. Rb3 {[%clk 0:00:17]}  Rf7 {[%clk 0:00:12]} 32. Re3 {[%clk 0:00:15]}  d4 {[%clk 0:00:12]} 33. Re4 {[%clk 0:00:15]}  Rf5 {[%clk 0:00:12]} 34. Rh4 {[%clk 0:00:12]}  Ke5 {[%clk 0:00:11]} 35. Ka2 {[%clk 0:00:11]}  Rg5 {[%clk 0:00:09]} 36. Rh3 {[%clk 0:00:10]}  Ke4 {[%clk 0:00:09]} 37. Rh4+ {[%clk 0:00:09]}  Kf5 {[%clk 0:00:10]} 38. Rh3 {[%clk 0:00:08]}  Kf4 {[%clk 0:00:10]} 39. Rh4+ {[%clk 0:00:07]}  Rg4 {[%clk 0:00:11]} 40. Rh1 {[%clk 0:00:04]}  Rg2 {[%clk 0:00:11]} 41. Rf1 {[%clk 0:00:04]}  Rh2 {[%clk 0:00:09]} 0-1


[Site "https://www.chess.com"]

[Event "Titled Tuesday Blitz January 25 2022"]
[White "Weetik, Vjacheslav"]
[Black "Ezat, Mohamed"]
[WhiteFideId "4153472"]
[BlackFideId "10600906"]
[WhiteElo "2469"]
[BlackElo "2386"]
[Result "0-1"]
[Round "11"]
[TimeControl "180+1"]
[Date "2022.01.26"]
[WhiteClock "0:00:01"]
[BlackClock "0:00:23"]

1. e4 {[%clk 0:02:59]}  c6 {[%clk 0:02:59]} 2. d4 {[%clk 0:02:57]}  d5 {[%clk 0:02:57]} 3. e5 {[%clk 0:02:57]}  c5 {[%clk 0:02:56]} 4. Nf3 {[%clk 0:02:57]}  Nc6 {[%clk 0:02:56]} 5. c4 {[%clk 0:02:58]}  cxd4 {[%clk 0:02:49]} 6. Nxd4 {[%clk 0:02:57]}  dxc4 {[%clk 0:02:47]} 7. Nxc6 {[%clk 0:02:36]}  Qxd1+ {[%clk 0:02:45]} 8. Kxd1 {[%clk 0:02:37]}  bxc6 {[%clk 0:02:45]} 9. Bxc4 {[%clk 0:02:36]}  Bf5 {[%clk 0:02:44]} 10. Be3 {[%clk 0:02:28]}  e6 {[%clk 0:02:44]} 11. Nd2 {[%clk 0:02:23]}  Ne7 {[%clk 0:02:43]} 12. Bc5 {[%clk 0:02:13]}  Nd5 {[%clk 0:02:42]} 13. Bxf8 {[%clk 0:02:13]}  Kxf8 {[%clk 0:02:42]} 14. Ke2 {[%clk 0:02:09]}  Ke7 {[%clk 0:02:40]} 15. g3 {[%clk 0:01:59]}  Rhd8 {[%clk 0:02:40]} 16. Rhc1 {[%clk 0:01:53]}  Rab8 {[%clk 0:02:38]} 17. b3 {[%clk 0:01:41]}  a5 {[%clk 0:02:33]} 18. a3 {[%clk 0:00:59]}  Nb6 {[%clk 0:02:17]} 19. Ba6 {[%clk 0:00:43]}  Rd5 {[%clk 0:01:30]} 20. Rxc6 {[%clk 0:00:42]}  Rxe5+ {[%clk 0:01:29]} 21. Kf1 {[%clk 0:00:31]}  Bh3+ {[%clk 0:01:26]} 22. Kg1 {[%clk 0:00:31]}  Nd5 {[%clk 0:01:21]} 23. Nf3 {[%clk 0:00:18]}  Rf5 {[%clk 0:01:21]} 24. Nd4 {[%clk 0:00:17]}  Rf6 {[%clk 0:01:20]} 25. Bc4 {[%clk 0:00:15]}  Rd8 {[%clk 0:01:14]} 26. Ra6 {[%clk 0:00:13]}  Nb4 {[%clk 0:00:37]} 27. axb4 {[%clk 0:00:11]}  Rxd4 {[%clk 0:00:37]} 28. bxa5 {[%clk 0:00:09]}  Rd2 {[%clk 0:00:38]} 29. Ra7+ {[%clk 0:00:07]}  Kd6 {[%clk 0:00:37]} 30. f4 {[%clk 0:00:04]}  Rg2+ {[%clk 0:00:35]} 31. Kh1 {[%clk 0:00:04]}  Rh6 {[%clk 0:00:34]} 32. Bf1 {[%clk 0:00:03]}  Rb2 {[%clk 0:00:33]} 33. Rd1+ {[%clk 0:00:03]}  Kc6 {[%clk 0:00:31]} 34. Bc4 {[%clk 0:00:03]}  Bg4 {[%clk 0:00:27]} 35. Rc1 {[%clk 0:00:01]}  Bf3+ {[%clk 0:00:24]} 36. Kg1 {[%clk 0:00:02]}  Kd6 {[%clk 0:00:23]} 37. h4 {[%clk 0:00:01]}  Rg6 {[%clk 0:00:23]} 0-1


[Site "https://www.chess.com"]

[Event "Titled Tuesday Blitz January 25 2022"]
[White "Yaksin, Oleg"]
[Black "Vokhidov, Shamsiddin"]
[WhiteFideId "24105880"]
[BlackFideId "14204223"]
[WhiteElo "2256"]
[BlackElo "2611"]
[Result "1-0"]
[Round "11"]
[TimeControl "180+1"]
[Date "2022.01.26"]
[WhiteClock "0:00:10"]
[BlackClock "0:00:40"]

1. d4 {[%clk 0:03:00]}  Nf6 {[%clk 0:03:00]} 2. c4 {[%clk 0:03:00]}  e6 {[%clk 0:03:00]} 3. g3 {[%clk 0:03:00]}  c5 {[%clk 0:03:00]} 4. d5 {[%clk 0:03:00]}  exd5 {[%clk 0:03:01]} 5. cxd5 {[%clk 0:03:01]}  d6 {[%clk 0:03:02]} 6. Nc3 {[%clk 0:03:00]}  g6 {[%clk 0:03:03]} 7. Bg2 {[%clk 0:03:00]}  Bg7 {[%clk 0:03:03]} 8. Nf3 {[%clk 0:03:01]}  O-O {[%clk 0:03:04]} 9. O-O {[%clk 0:03:02]}  Re8 {[%clk 0:03:05]} 10. Bf4 {[%clk 0:03:02]}  Bf5 {[%clk 0:03:04]} 11. Nd2 {[%clk 0:02:24]}  Nh5 {[%clk 0:03:01]} 12. Be3 {[%clk 0:02:24]}  Rxe3 {[%clk 0:02:48]} 13. fxe3 {[%clk 0:02:25]}  Qe7 {[%clk 0:02:48]} 14. e4 {[%clk 0:01:51]}  Bd7 {[%clk 0:02:43]} 15. a4 {[%clk 0:01:50]}  Na6 {[%clk 0:02:42]} 16. Nc4 {[%clk 0:01:50]}  Nb4 {[%clk 0:02:41]} 17. Nb5 {[%clk 0:01:35]}  a6 {[%clk 0:01:55]} 18. Nbxd6 {[%clk 0:01:26]}  Rb8 {[%clk 0:01:56]} 19. Rxf7 {[%clk 0:01:21]}  Qd8 {[%clk 0:01:47]} 20. a5 {[%clk 0:01:18]}  Bb5 {[%clk 0:01:41]} 21. Qf1 {[%clk 0:01:10]}  Nf6 {[%clk 0:01:36]} 22. e5 {[%clk 0:01:02]}  Ng4 {[%clk 0:01:35]} 23. Rxg7+ {[%clk 0:00:34]}  Kxg7 {[%clk 0:01:34]} 24. Qf7+ {[%clk 0:00:34]}  Kh8 {[%clk 0:01:34]} 25. Qe6 {[%clk 0:00:35]}  Nh6 {[%clk 0:01:33]} 26. Nb6 {[%clk 0:00:24]}  Qg8 {[%clk 0:01:23]} 27. Rf1 {[%clk 0:00:20]}  Qxe6 {[%clk 0:01:14]} 28. dxe6 {[%clk 0:00:20]}  Ng4 {[%clk 0:01:15]} 29. e7 {[%clk 0:00:19]}  Kg7 {[%clk 0:01:15]} 30. Nbc8 {[%clk 0:00:17]}  Nxe5 {[%clk 0:01:07]} 31. Nxb5 {[%clk 0:00:17]}  Rxc8 {[%clk 0:01:03]} 32. Nd6 {[%clk 0:00:17]}  Rb8 {[%clk 0:00:58]} 33. e8=Q {[%clk 0:00:17]}  Rxe8 {[%clk 0:00:58]} 34. Nxe8+ {[%clk 0:00:18]}  Kh6 {[%clk 0:00:59]} 35. Bxb7 {[%clk 0:00:19]}  Nc4 {[%clk 0:00:59]} 36. Nc7 {[%clk 0:00:18]}  Nxa5 {[%clk 0:00:57]} 37. Bxa6 {[%clk 0:00:17]}  Nb3 {[%clk 0:00:56]} 38. Bc4 {[%clk 0:00:16]}  Nd2 {[%clk 0:00:55]} 39. Rc1 {[%clk 0:00:14]}  Nc6 {[%clk 0:00:52]} 40. Ne6 {[%clk 0:00:13]}  Ne5 {[%clk 0:00:52]} 41. Bd5 {[%clk 0:00:10]}  c4 {[%clk 0:00:51]} 42. Rc2 {[%clk 0:00:10]}  Nb3 {[%clk 0:00:50]} 43. Bxc4 {[%clk 0:00:10]}  Na1 {[%clk 0:00:41]} 44. Rc3 {[%clk 0:00:10]}  Nxc4 {[%clk 0:00:40]} 45. Rxc4 {[%clk 0:00:10]} 1-0


[Site "https://www.chess.com"]

[Event "Titled Tuesday Blitz January 25 2022"]
[White "Zarubitski, Viachaslau"]
[Black "Srihari L R"]
[WhiteFideId "13509373"]
[BlackFideId "46617116"]
[WhiteElo "2325"]
[BlackElo "2121"]
[Result "1-0"]
[Round "11"]
[TimeControl "180+1"]
[Date "2022.01.26"]
[WhiteClock "0:00:06"]
[BlackClock "0:00:03"]

1. c4 {[%clk 0:02:50]}  e6 {[%clk 0:02:58]} 2. g3 {[%clk 0:02:50]}  d5 {[%clk 0:02:57]} 3. Bg2 {[%clk 0:02:50]}  Nf6 {[%clk 0:02:57]} 4. Nf3 {[%clk 0:02:50]}  c5 {[%clk 0:02:56]} 5. O-O {[%clk 0:02:49]}  Nc6 {[%clk 0:02:55]} 6. b3 {[%clk 0:02:49]}  Be7 {[%clk 0:02:54]} 7. e3 {[%clk 0:02:17]}  O-O {[%clk 0:02:50]} 8. Bb2 {[%clk 0:02:17]}  d4 {[%clk 0:02:49]} 9. exd4 {[%clk 0:02:13]}  cxd4 {[%clk 0:02:50]} 10. d3 {[%clk 0:02:14]}  Bc5 {[%clk 0:02:43]} 11. Na3 {[%clk 0:02:13]}  e5 {[%clk 0:02:39]} 12. Nc2 {[%clk 0:02:14]}  a5 {[%clk 0:02:37]} 13. Re1 {[%clk 0:02:13]}  Re8 {[%clk 0:02:36]} 14. a3 {[%clk 0:02:12]}  Qd6 {[%clk 0:02:19]} 15. Qd2 {[%clk 0:02:08]}  Bg4 {[%clk 0:02:10]} 16. Ng5 {[%clk 0:02:04]}  h6 {[%clk 0:02:08]} 17. Ne4 {[%clk 0:02:04]}  Nxe4 {[%clk 0:02:07]} 18. Bxe4 {[%clk 0:02:05]}  f5 {[%clk 0:02:01]} 19. Bd5+ {[%clk 0:02:04]}  Kh8 {[%clk 0:01:59]} 20. f4 {[%clk 0:01:36]}  e4 {[%clk 0:01:41]} 21. dxe4 {[%clk 0:01:07]}  d3+ {[%clk 0:01:35]} 22. Ne3 {[%clk 0:01:07]}  fxe4 {[%clk 0:01:35]} 23. b4 {[%clk 0:00:41]}  axb4 {[%clk 0:01:24]} 24. axb4 {[%clk 0:00:42]}  Bxb4 {[%clk 0:01:20]} 25. Bxg7+ {[%clk 0:00:41]}  Kxg7 {[%clk 0:01:02]} 26. Qb2+ {[%clk 0:00:41]}  Qf6 {[%clk 0:00:58]} 27. Qxf6+ {[%clk 0:00:40]}  Kxf6 {[%clk 0:00:58]} 28. Nxg4+ {[%clk 0:00:41]}  Kg7 {[%clk 0:00:57]} 29. Rxa8 {[%clk 0:00:27]}  Rxa8 {[%clk 0:00:52]} 30. Rb1 {[%clk 0:00:27]}  h5 {[%clk 0:00:29]} 31. Nf2 {[%clk 0:00:22]}  Bc5 {[%clk 0:00:16]} 32. Rxb7+ {[%clk 0:00:21]}  Kf6 {[%clk 0:00:13]} 33. Bxc6 {[%clk 0:00:19]}  d2 {[%clk 0:00:10]} 34. Rb1 {[%clk 0:00:18]}  Ra2 {[%clk 0:00:04]} 35. Rd1 {[%clk 0:00:13]}  e3 {[%clk 0:00:03]} 36. Ne4+ {[%clk 0:00:14]}  Kf5 {[%clk 0:00:04]} 37. Kf1 {[%clk 0:00:15]}  Bd4 {[%clk 0:00:03]} 38. Ke2 {[%clk 0:00:15]}  Ra6 {[%clk 0:00:02]} 39. Bd5 {[%clk 0:00:15]}  Ra2 {[%clk 0:00:02]} 40. Kd3 {[%clk 0:00:08]}  Ba7 {[%clk 0:00:01]} 41. c5 {[%clk 0:00:07]}  Ra3+ {[%clk 0:00:01]} 42. Ke2 {[%clk 0:00:08]}  Ra4 {[%clk 0:00:01]} 43. Kxe3 {[%clk 0:00:08]}  Ra3+ {[%clk 0:00:01]} 44. Ke2 {[%clk 0:00:08]}  Bxc5 {[%clk 0:00:01]} 45. Nxc5 {[%clk 0:00:08]}  Ra4 {[%clk 0:00:02]} 46. Nxa4 {[%clk 0:00:08]}  Kg4 {[%clk 0:00:02]} 47. Rxd2 {[%clk 0:00:08]}  Kh3 {[%clk 0:00:03]} 48. Ke3 {[%clk 0:00:06]}  Kg4 {[%clk 0:00:03]} 49. Be6# {[%clk 0:00:06]} 1-0


[Site "https://www.chess.com"]

[Event "Titled Tuesday Blitz January 25 2022"]
[White "Zelbel, Patrick"]
[Black "Belyakov, Bogdan"]
[WhiteFideId "24624322"]
[BlackFideId "24104795"]
[WhiteElo "2493"]
[BlackElo "2407"]
[Result "1-0"]
[Round "11"]
[TimeControl "180+1"]
[Date "2022.01.26"]
[WhiteClock "0:00:42"]
[BlackClock "0:00:13"]

1. d4 {[%clk 0:03:00]}  Nf6 {[%clk 0:02:56]} 2. c4 {[%clk 0:03:00]}  g6 {[%clk 0:02:54]} 3. Nc3 {[%clk 0:03:00]}  Bg7 {[%clk 0:02:54]} 4. e4 {[%clk 0:03:00]}  d6 {[%clk 0:02:53]} 5. h3 {[%clk 0:03:00]}  O-O {[%clk 0:02:50]} 6. Be3 {[%clk 0:03:00]}  c5 {[%clk 0:02:50]} 7. d5 {[%clk 0:03:00]}  b5 {[%clk 0:02:07]} 8. cxb5 {[%clk 0:02:51]}  a6 {[%clk 0:02:07]} 9. a4 {[%clk 0:02:50]}  Qa5 {[%clk 0:01:59]} 10. Bd2 {[%clk 0:02:50]}  Qb4 {[%clk 0:01:58]} 11. Bd3 {[%clk 0:02:48]}  c4 {[%clk 0:01:57]} 12. Bc2 {[%clk 0:02:47]}  Qxb2 {[%clk 0:01:44]} 13. Rb1 {[%clk 0:02:44]}  Qa3 {[%clk 0:01:44]} 14. Nge2 {[%clk 0:02:45]}  Nbd7 {[%clk 0:01:39]} 15. O-O {[%clk 0:02:40]}  Ne5 {[%clk 0:01:37]} 16. Kh1 {[%clk 0:02:33]}  Nd3 {[%clk 0:01:35]} 17. Be3 {[%clk 0:02:32]}  Nd7 {[%clk 0:01:25]} 18. Bxd3 {[%clk 0:02:30]}  cxd3 {[%clk 0:01:24]} 19. Qxd3 {[%clk 0:02:31]}  axb5 {[%clk 0:01:24]} 20. Ra1 {[%clk 0:02:27]}  Qb3 {[%clk 0:01:16]} 21. axb5 {[%clk 0:02:24]}  Ne5 {[%clk 0:01:08]} 22. Qb1 {[%clk 0:02:24]}  Qxb1 {[%clk 0:01:07]} 23. Rfxb1 {[%clk 0:02:23]}  Bb7 {[%clk 0:01:02]} 24. Bd4 {[%clk 0:02:22]}  f5 {[%clk 0:00:57]} 25. Nf4 {[%clk 0:02:10]}  fxe4 {[%clk 0:00:50]} 26. Ne6 {[%clk 0:02:10]}  Rfc8 {[%clk 0:00:47]} 27. Rxa8 {[%clk 0:02:07]}  Bxa8 {[%clk 0:00:45]} 28. Nxg7 {[%clk 0:02:08]}  Kxg7 {[%clk 0:00:44]} 29. b6 {[%clk 0:02:04]}  Bb7 {[%clk 0:00:41]} 30. Ra1 {[%clk 0:01:45]}  Kf7 {[%clk 0:00:30]} 31. Ra7 {[%clk 0:01:45]}  Rb8 {[%clk 0:00:31]} 32. Bxe5 {[%clk 0:01:42]}  dxe5 {[%clk 0:00:31]} 33. Kh2 {[%clk 0:01:38]}  Ke8 {[%clk 0:00:28]} 34. Kg3 {[%clk 0:01:38]}  h6 {[%clk 0:00:21]} 35. h4 {[%clk 0:01:36]}  Kd8 {[%clk 0:00:20]} 36. h5 {[%clk 0:01:27]}  g5 {[%clk 0:00:19]} 37. Kh2 {[%clk 0:01:23]}  Ke8 {[%clk 0:00:17]} 38. Kg3 {[%clk 0:01:23]}  Kf7 {[%clk 0:00:17]} 39. Ra5 {[%clk 0:01:13]}  Bc8 {[%clk 0:00:15]} 40. Rb5 {[%clk 0:01:05]}  Bd7 {[%clk 0:00:15]} 41. Rb4 {[%clk 0:01:04]}  Bf5 {[%clk 0:00:16]} 42. b7 {[%clk 0:01:01]}  Ke8 {[%clk 0:00:15]} 43. Na4 {[%clk 0:00:55]}  e3 {[%clk 0:00:13]} 44. fxe3 {[%clk 0:00:54]}  Bd3 {[%clk 0:00:13]} 45. Nc5 {[%clk 0:00:53]}  e4 {[%clk 0:00:13]} 46. Rb6 {[%clk 0:00:45]}  Kd8 {[%clk 0:00:12]} 47. Rxh6 {[%clk 0:00:43]}  Kc7 {[%clk 0:00:12]} 48. Rc6+ {[%clk 0:00:42]}  Kd8 {[%clk 0:00:13]} 49. h6 {[%clk 0:00:42]}  Ke8 {[%clk 0:00:13]} 50. Rc8+ {[%clk 0:00:42]} 1-0


[Site "https://www.chess.com"]